[Event "Early-Titled-Tuesday-Blitz-February-13-2024"]
[Site "Chess.com"]
[Date "2024.02.13"]
[Round "3"]
[White "treadstone_71"]
[Black "KbzasDavid16"]
[Result "1-0"]
[WhiteElo "2300"]
[BlackElo "2545"]
[TimeControl "180+1"]
[EndTime "8:31:51 PST"]
[Termination "treadstone_71 won by checkmate"]

1. e4 {[%clk 0:03:00.9]} 1... c5 {[%clk 0:02:55.7]} 2. Nf3 {[%clk 0:03:00.4]}
2... d6 {[%clk 0:02:54.1]} 3. d4 {[%clk 0:02:59.9]} 3... cxd4 {[%clk 0:02:53.5]}
4. Nxd4 {[%clk 0:03:00.8]} 4... Nf6 {[%clk 0:02:54.2]} 5. Nc3 {[%clk 0:03:01]}
5... a6 {[%clk 0:02:54.9]} 6. Bg5 {[%clk 0:03:01.1]} 6... e6 {[%clk 0:02:54.9]}
7. f4 {[%clk 0:03:01.3]} 7... Nbd7 {[%clk 0:02:55.4]} 8. Qf3 {[%clk 0:03:01.4]}
8... Qc7 {[%clk 0:02:55.6]} 9. O-O-O {[%clk 0:03:01.5]} 9... b5 {[%clk
0:02:56.3]} 10. Bd3 {[%clk 0:03:01.7]} 10... Bb7 {[%clk 0:02:54.6]} 11. Rhe1
{[%clk 0:02:59.4]} 11... Qb6 {[%clk 0:02:54.7]} 12. Bxf6 {[%clk 0:02:41.5]}
12... Nxf6 {[%clk 0:02:34.9]} 13. Nd5 {[%clk 0:02:40.9]} 13... exd5 {[%clk
0:02:09.4]} 14. exd5+ {[%clk 0:02:40.2]} 14... Kd8 {[%clk 0:01:49.3]} 15. Nc6+
{[%clk 0:02:04.4]} 15... Bxc6 {[%clk 0:01:47.7]} 16. dxc6 {[%clk 0:02:05.3]}
16... Kc7 {[%clk 0:00:54.3]} 17. g4 {[%clk 0:01:54.8]} 17... Qxc6 {[%clk
0:00:24.7]} 18. Qg3 {[%clk 0:01:50]} 18... h6 {[%clk 0:00:17.1]} 19. g5 {[%clk
0:01:48.7]} 19... Nh5 {[%clk 0:00:16.6]} 20. Qg4 {[%clk 0:01:40]} 20... hxg5
{[%clk 0:00:07.8]} 21. fxg5 {[%clk 0:01:37.5]} 21... Rd8 {[%clk 0:00:05.4]} 22.
Be4 {[%clk 0:01:28.3]} 22... d5 {[%clk 0:00:05.9]} 23. Bf3 {[%clk 0:01:16.6]}
23... Bc5 {[%clk 0:00:03.1]} 24. Re5 {[%clk 0:00:59.8]} 24... Qd6 {[%clk
0:00:02.3]} 25. Rexd5 {[%clk 0:00:51.1]} 25... Qf4+ {[%clk 0:00:02.3]} 26. Qxf4+
{[%clk 0:00:51.3]} 26... Nxf4 {[%clk 0:00:02.8]} 27. Rxc5+ {[%clk 0:00:51.9]}
27... Kb6 {[%clk 0:00:02.5]} 28. Rc6+ {[%clk 0:00:47.7]} 28... Ka5 {[%clk
0:00:02.8]} 29. Rxd8 {[%clk 0:00:21.3]} 29... Rxd8 {[%clk 0:00:03.7]} 30. a3
{[%clk 0:00:21.9]} 30... b4 {[%clk 0:00:03.3]} 31. Rc5+ {[%clk 0:00:18.2]} 31...
Ka4 {[%clk 0:00:01.5]} 32. b3+ {[%clk 0:00:16.8]} 32... Kxa3 {[%clk 0:00:01]}
33. Ra5# {[%clk 0:00:17.2]} 1-0

[Event "Early-Titled-Tuesday-Blitz-February-13-2024"]
[Site "Chess.com"]
[Date "2024.02.13"]
[Round "3"]
[White "gau_npukyputb"]
[Black "TimGrutter03"]
[Result "0-1"]
[WhiteElo "2845"]
[BlackElo "2646"]
[TimeControl "180+1"]
[EndTime "8:31:54 PST"]
[Termination "TimGrutter03 won on time"]

1. g3 {[%clk 0:03:00.9]} 1... g6 {[%clk 0:02:58.5]} 2. Nf3 {[%clk 0:03:01.3]}
2... Bg7 {[%clk 0:02:59.1]} 3. Bg2 {[%clk 0:03:02.2]} 3... d6 {[%clk 0:02:58.8]}
4. O-O {[%clk 0:03:02.8]} 4... Nc6 {[%clk 0:02:58.2]} 5. d4 {[%clk 0:03:02.4]}
5... e5 {[%clk 0:02:54]} 6. dxe5 {[%clk 0:03:03.3]} 6... Nxe5 {[%clk 0:02:53.9]}
7. Nc3 {[%clk 0:03:00.5]} 7... Nxf3+ {[%clk 0:02:46.5]} 8. exf3 {[%clk
0:02:58.8]} 8... Ne7 {[%clk 0:02:46.8]} 9. Be3 {[%clk 0:02:50.5]} 9... Nf5
{[%clk 0:02:42.7]} 10. Re1 {[%clk 0:02:50.3]} 10... O-O {[%clk 0:02:42.1]} 11.
Qd2 {[%clk 0:02:48.1]} 11... Nxe3 {[%clk 0:02:39.7]} 12. Rxe3 {[%clk 0:02:49]}
12... c6 {[%clk 0:02:36.8]} 13. Rae1 {[%clk 0:02:46.4]} 13... d5 {[%clk
0:02:34.3]} 14. Ne2 {[%clk 0:02:30.1]} 14... Bxb2 {[%clk 0:02:33.1]} 15. c4
{[%clk 0:02:27.9]} 15... Bg7 {[%clk 0:02:28.3]} 16. Rd3 {[%clk 0:02:21.9]} 16...
Be6 {[%clk 0:02:26]} 17. cxd5 {[%clk 0:02:21.7]} 17... Bf5 {[%clk 0:02:11.6]}
18. Rb3 {[%clk 0:02:07.9]} 18... Qxd5 {[%clk 0:01:57.5]} 19. Qxd5 {[%clk
0:02:08.1]} 19... cxd5 {[%clk 0:01:58.4]} 20. Nf4 {[%clk 0:02:02.3]} 20... b6
{[%clk 0:01:52.2]} 21. Nxd5 {[%clk 0:01:59.8]} 21... Be6 {[%clk 0:01:52]} 22. f4
{[%clk 0:01:47.9]} 22... Rad8 {[%clk 0:01:49.6]} 23. Rd3 {[%clk 0:01:42]} 23...
Kh8 {[%clk 0:01:46.1]} 24. Red1 {[%clk 0:01:39.6]} 24... Rc8 {[%clk 0:01:43.4]}
25. Ra3 {[%clk 0:01:34.7]} 25... Rfd8 {[%clk 0:01:27.2]} 26. Rxa7 {[%clk
0:01:24.6]} 26... Rc5 {[%clk 0:01:23.5]} 27. Bf3 {[%clk 0:01:23.8]} 27... h5
{[%clk 0:01:14.2]} 28. Ne3 {[%clk 0:01:14.6]} 28... Rxd1+ {[%clk 0:01:10.5]} 29.
Nxd1 {[%clk 0:01:02.9]} 29... Rc1 {[%clk 0:00:58.9]} 30. Kg2 {[%clk 0:00:57.5]}
30... Ra1 {[%clk 0:00:58.9]} 31. a3 {[%clk 0:00:48.1]} 31... Bd4 {[%clk
0:00:57.7]} 32. Ne3 {[%clk 0:00:40.6]} 32... Bc5 {[%clk 0:00:57.6]} 33. a4
{[%clk 0:00:32.8]} 33... Ra2 {[%clk 0:00:44.4]} 34. Kf1 {[%clk 0:00:26]} 34...
Bh3+ {[%clk 0:00:28.7]} 35. Bg2 {[%clk 0:00:14.9]} 35... Bxg2+ {[%clk
0:00:26.1]} 0-1

[Event "Early-Titled-Tuesday-Blitz-February-13-2024"]
[Site "Chess.com"]
[Date "2024.02.13"]
[Round "3"]
[White "Yeritsyaan"]
[Black "GMKrikor"]
[Result "0-1"]
[WhiteElo "2611"]
[BlackElo "2886"]
[TimeControl "180+1"]
[EndTime "8:31:55 PST"]
[Termination "GMKrikor won by resignation"]

1. d4 {[%clk 0:03:00.9]} 1... Nf6 {[%clk 0:02:58.1]} 2. Nc3 {[%clk 0:03:00.9]}
2... d5 {[%clk 0:02:57.6]} 3. Bf4 {[%clk 0:03:00.5]} 3... a6 {[%clk 0:02:57.6]}
4. e3 {[%clk 0:02:59]} 4... Bf5 {[%clk 0:02:57.4]} 5. Nf3 {[%clk 0:02:53.6]}
5... e6 {[%clk 0:02:57.1]} 6. Ne5 {[%clk 0:02:52.9]} 6... h6 {[%clk 0:02:57.1]}
7. g4 {[%clk 0:02:52.6]} 7... Bh7 {[%clk 0:02:57.3]} 8. h4 {[%clk 0:02:50.2]}
8... Nfd7 {[%clk 0:02:57.4]} 9. a3 {[%clk 0:02:41.5]} 9... Nxe5 {[%clk 0:02:56]}
10. Bxe5 {[%clk 0:02:41.4]} 10... c5 {[%clk 0:02:52.9]} 11. Bd3 {[%clk 0:02:36]}
11... Bxd3 {[%clk 0:02:51.3]} 12. Qxd3 {[%clk 0:02:36.8]} 12... Nc6 {[%clk
0:02:50.3]} 13. Bg3 {[%clk 0:02:36.6]} 13... Rc8 {[%clk 0:02:34.2]} 14. dxc5
{[%clk 0:02:25.4]} 14... Bxc5 {[%clk 0:02:29.4]} 15. e4 {[%clk 0:02:18.1]} 15...
d4 {[%clk 0:02:15.4]} 16. Ne2 {[%clk 0:02:10.6]} 16... Qb6 {[%clk 0:02:14.5]}
17. b4 {[%clk 0:02:06.2]} 17... Be7 {[%clk 0:02:14.7]} 18. Rb1 {[%clk
0:01:57.6]} 18... O-O {[%clk 0:02:08.7]} 19. g5 {[%clk 0:01:43.1]} 19... h5
{[%clk 0:02:07.8]} 20. f4 {[%clk 0:01:40]} 20... g6 {[%clk 0:01:50]} 21. O-O
{[%clk 0:01:36.2]} 21... Rfe8 {[%clk 0:01:49.1]} 22. Kh2 {[%clk 0:01:34.4]}
22... Bd6 {[%clk 0:01:47.8]} 23. Rf3 {[%clk 0:01:16.3]} 23... Qc7 {[%clk
0:01:47.3]} 24. Rbf1 {[%clk 0:01:12.8]} 24... b5 {[%clk 0:01:43.5]} 25. R1f2
{[%clk 0:01:09.8]} 25... Rcd8 {[%clk 0:01:27.3]} 26. Kg2 {[%clk 0:01:03.4]}
26... a5 {[%clk 0:01:21.4]} 27. bxa5 {[%clk 0:00:59.7]} 27... Qxa5 {[%clk
0:01:19.4]} 28. f5 {[%clk 0:00:53.9]} 28... Bxg3 {[%clk 0:01:19.3]} 29. fxg6
{[%clk 0:00:43.6]} 29... fxg6 {[%clk 0:01:13.6]} 30. Rf6 {[%clk 0:00:20.4]}
30... Be5 {[%clk 0:00:32.5]} 31. Rxg6+ {[%clk 0:00:18.2]} 31... Bg7 {[%clk
0:00:33.4]} 32. Qf3 {[%clk 0:00:14.3]} 32... Ne5 {[%clk 0:00:22.4]} 33. Nf4
{[%clk 0:00:14.9]} 33... Nxf3 {[%clk 0:00:22.1]} 34. Rxf3 {[%clk 0:00:10.1]}
34... Rf8 {[%clk 0:00:20]} 35. Nxe6 {[%clk 0:00:06.6]} 35... Qd2+ {[%clk
0:00:19.2]} 0-1

[Event "Early-Titled-Tuesday-Blitz-February-13-2024"]
[Site "Chess.com"]
[Date "2024.02.13"]
[Round "3"]
[White "NewYearGirl"]
[Black "MikeSailer"]
[Result "1-0"]
[WhiteElo "2402"]
[BlackElo "2164"]
[TimeControl "180+1"]
[EndTime "8:31:56 PST"]
[Termination "NewYearGirl won on time"]

1. e4 {[%clk 0:03:00.9]} 1... d5 {[%clk 0:02:59.3]} 2. exd5 {[%clk 0:02:52.7]}
2... Qxd5 {[%clk 0:02:58.2]} 3. Nc3 {[%clk 0:02:52.7]} 3... Qd6 {[%clk
0:02:57.9]} 4. d4 {[%clk 0:02:49.2]} 4... c6 {[%clk 0:02:56.1]} 5. Bc4 {[%clk
0:02:45.1]} 5... Nf6 {[%clk 0:02:54.6]} 6. Nge2 {[%clk 0:02:45.3]} 6... Bg4
{[%clk 0:02:50.8]} 7. f3 {[%clk 0:02:43.8]} 7... Bf5 {[%clk 0:02:48.3]} 8. Bf4
{[%clk 0:02:43.8]} 8... Qb4 {[%clk 0:02:47.3]} 9. Bb3 {[%clk 0:02:39.9]} 9... e6
{[%clk 0:02:45.6]} 10. Bc7 {[%clk 0:02:39.1]} 10... Na6 {[%clk 0:02:26.9]} 11.
a3 {[%clk 0:02:38.7]} 11... Qe7 {[%clk 0:02:26.1]} 12. Be5 {[%clk 0:02:38.6]}
12... h5 {[%clk 0:02:15.8]} 13. O-O {[%clk 0:02:28.5]} 13... Qd8 {[%clk
0:02:07]} 14. Ng3 {[%clk 0:02:26.9]} 14... Bg6 {[%clk 0:02:00.9]} 15. Nge4
{[%clk 0:02:25.2]} 15... Be7 {[%clk 0:01:56.3]} 16. Ng5 {[%clk 0:02:20]} 16...
Nc7 {[%clk 0:01:52.4]} 17. Qe1 {[%clk 0:02:13.3]} 17... Ncd5 {[%clk 0:01:44.4]}
18. Qg3 {[%clk 0:02:07.1]} 18... h4 {[%clk 0:01:39.8]} 19. Qh3 {[%clk
0:01:59.3]} 19... Ne3 {[%clk 0:01:12.3]} 20. Rfe1 {[%clk 0:01:55.1]} 20... Bf5
{[%clk 0:01:04]} 21. g4 {[%clk 0:01:53.4]} 21... Nexg4 {[%clk 0:00:41]} 22. fxg4
{[%clk 0:01:51.8]} 22... Nxg4 {[%clk 0:00:41.2]} 23. Qf1 {[%clk 0:01:18]} 23...
Bxg5 {[%clk 0:00:37.7]} 24. Bxg7 {[%clk 0:01:18.3]} 24... Rg8 {[%clk 0:00:29.3]}
25. Qxf5 {[%clk 0:01:16.9]} 25... Rxg7 {[%clk 0:00:24]} 26. Bxe6 {[%clk
0:01:07.7]} 26... Qxd4+ {[%clk 0:00:14.5]} 27. Kh1 {[%clk 0:00:45]} 27... Nf2+
{[%clk 0:00:11.6]} 28. Kg2 {[%clk 0:00:39]} 28... Bd2+ {[%clk 0:00:09.7]} 29.
Kf3 {[%clk 0:00:39.2]} 29... Bxe1 {[%clk 0:00:08.6]} 30. Rxe1 {[%clk 0:00:35.4]}
30... fxe6 {[%clk 0:00:06.8]} 31. Qxe6+ {[%clk 0:00:31.8]} 31... Kf8 {[%clk
0:00:06.7]} 32. Re4 {[%clk 0:00:25.4]} 32... Qd7 {[%clk 0:00:05]} 33. Rf4+
{[%clk 0:00:25.1]} 33... Rf7 {[%clk 0:00:05.5]} 34. Qxd7 {[%clk 0:00:24.9]}
34... Rxf4+ {[%clk 0:00:05.9]} 35. Kxf4 {[%clk 0:00:25.8]} 1-0

[Event "Early-Titled-Tuesday-Blitz-February-13-2024"]
[Site "Chess.com"]
[Date "2024.02.13"]
[Round "3"]
[White "Khromkin"]
[Black "Lion-Al-Messi"]
[Result "0-1"]
[WhiteElo "2319"]
[BlackElo "2589"]
[TimeControl "180+1"]
[EndTime "8:31:57 PST"]
[Termination "Lion-Al-Messi won on time"]

1. d4 {[%clk 0:02:50.8]} 1... Nf6 {[%clk 0:02:58.7]} 2. c4 {[%clk 0:02:51.7]}
2... b6 {[%clk 0:02:58.7]} 3. Nf3 {[%clk 0:02:52.6]} 3... Bb7 {[%clk 0:02:58.6]}
4. g3 {[%clk 0:02:53.2]} 4... e6 {[%clk 0:02:55.3]} 5. Bg2 {[%clk 0:02:53.7]}
5... c5 {[%clk 0:02:55.4]} 6. dxc5 {[%clk 0:02:42.5]} 6... Bxc5 {[%clk
0:02:54.5]} 7. O-O {[%clk 0:02:42.5]} 7... O-O {[%clk 0:02:54.7]} 8. a3 {[%clk
0:02:43.1]} 8... a5 {[%clk 0:02:54.5]} 9. b3 {[%clk 0:02:42.3]} 9... Nc6 {[%clk
0:02:50.9]} 10. Bb2 {[%clk 0:02:42.3]} 10... Qe7 {[%clk 0:02:50.3]} 11. Nc3
{[%clk 0:02:40.1]} 11... Rab8 {[%clk 0:02:47.2]} 12. Na4 {[%clk 0:02:38]} 12...
d6 {[%clk 0:02:41.2]} 13. Qc2 {[%clk 0:02:00.5]} 13... Rfd8 {[%clk 0:02:38.1]}
14. Rfd1 {[%clk 0:01:52.5]} 14... Rd7 {[%clk 0:02:33.7]} 15. Ng5 {[%clk
0:01:52.3]} 15... e5 {[%clk 0:02:33.7]} 16. e3 {[%clk 0:01:37.4]} 16... h6
{[%clk 0:02:32.4]} 17. Ne4 {[%clk 0:01:36.7]} 17... Nxe4 {[%clk 0:02:32.5]} 18.
Bxe4 {[%clk 0:01:37.3]} 18... Na7 {[%clk 0:02:25.6]} 19. Nc3 {[%clk 0:01:34.8]}
19... b5 {[%clk 0:02:17.2]} 20. Nd5 {[%clk 0:01:20.1]} 20... Qd8 {[%clk
0:02:12.4]} 21. Bf5 {[%clk 0:01:12.9]} 21... Bxd5 {[%clk 0:02:10.4]} 22. Bxd7
{[%clk 0:01:02.7]} 22... Bf3 {[%clk 0:02:10]} 23. Bf5 {[%clk 0:01:01.1]} 23...
bxc4 {[%clk 0:02:06.6]} 24. Qxc4 {[%clk 0:00:51.1]} 24... Qf6 {[%clk 0:01:54.7]}
25. Bh3 {[%clk 0:00:35.3]} 25... Bxd1 {[%clk 0:01:42]} 26. Rxd1 {[%clk
0:00:34.6]} 26... Qf3 {[%clk 0:01:39.9]} 27. Rd3 {[%clk 0:00:25.4]} 27... Qc6
{[%clk 0:01:33.5]} 28. Bg2 {[%clk 0:00:24]} 28... Qb6 {[%clk 0:01:33.2]} 29. Bd5
{[%clk 0:00:22.7]} 29... Rf8 {[%clk 0:01:31.4]} 30. Kg2 {[%clk 0:00:18.9]} 30...
Nc8 {[%clk 0:01:31.5]} 31. h4 {[%clk 0:00:13.3]} 31... Ne7 {[%clk 0:01:31.5]}
32. Be4 {[%clk 0:00:12.7]} 32... Kh8 {[%clk 0:01:31.8]} 33. Rd1 {[%clk
0:00:11.6]} 33... f5 {[%clk 0:01:32]} 34. Bc2 {[%clk 0:00:11.1]} 34... Qb7+
{[%clk 0:01:32.4]} 35. Kh2 {[%clk 0:00:10]} 35... Qf3 {[%clk 0:01:32.9]} 36. Rd2
{[%clk 0:00:07.8]} 36... f4 {[%clk 0:01:24.5]} 37. Qd3 {[%clk 0:00:07.7]} 37...
fxg3+ {[%clk 0:01:22.8]} 38. fxg3 {[%clk 0:00:08]} 38... g6 {[%clk 0:01:18.7]}
39. Qe4 {[%clk 0:00:04.9]} 39... Qf1 {[%clk 0:00:52.7]} 40. b4 {[%clk
0:00:03.2]} 40... Rf2+ {[%clk 0:00:49]} 41. Rxf2 {[%clk 0:00:03.1]} 41... Qxf2+
{[%clk 0:00:49.5]} 42. Kh3 {[%clk 0:00:02.4]} 42... Bxe3 {[%clk 0:00:40.9]} 0-1

[Event "Early-Titled-Tuesday-Blitz-February-13-2024"]
[Site "Chess.com"]
[Date "2024.02.13"]
[Round "3"]
[White "LaPiToB"]
[Black "JeFumeDesClopes"]
[Result "0-1"]
[WhiteElo "2313"]
[BlackElo "2586"]
[TimeControl "180+1"]
[EndTime "8:31:58 PST"]
[Termination "JeFumeDesClopes won by resignation"]

1. d4 {[%clk 0:03:00.9]} 1... Nf6 {[%clk 0:02:59]} 2. c4 {[%clk 0:03:01.1]} 2...
a6 {[%clk 0:02:59]} 3. Nc3 {[%clk 0:03:00.3]} 3... c5 {[%clk 0:02:59.3]} 4. d5
{[%clk 0:02:58.3]} 4... b5 {[%clk 0:02:59.6]} 5. cxb5 {[%clk 0:02:57.8]} 5...
axb5 {[%clk 0:03:00.5]} 6. Nxb5 {[%clk 0:02:54]} 6... Ne4 {[%clk 0:03:00.7]} 7.
Nc3 {[%clk 0:02:42.7]} 7... Nxc3 {[%clk 0:03:00.3]} 8. bxc3 {[%clk 0:02:42.5]}
8... g6 {[%clk 0:03:00.7]} 9. Bd2 {[%clk 0:02:32.5]} 9... Bg7 {[%clk 0:03:00.1]}
10. e4 {[%clk 0:02:29]} 10... O-O {[%clk 0:02:57.4]} 11. Nf3 {[%clk 0:02:27.6]}
11... d6 {[%clk 0:02:57.3]} 12. Bd3 {[%clk 0:02:24.3]} 12... Qa5 {[%clk
0:02:55.8]} 13. Qc2 {[%clk 0:02:21.1]} 13... Bg4 {[%clk 0:02:48.9]} 14. O-O
{[%clk 0:02:09.7]} 14... Bxf3 {[%clk 0:02:48.1]} 15. gxf3 {[%clk 0:02:10]} 15...
Nd7 {[%clk 0:02:46.7]} 16. c4 {[%clk 0:02:05.1]} 16... Qa3 {[%clk 0:02:37.8]}
17. Rab1 {[%clk 0:01:35.1]} 17... Ne5 {[%clk 0:02:29.2]} 18. Rb3 {[%clk
0:01:05.8]} 18... Qxa2 {[%clk 0:02:15.3]} 19. Kg2 {[%clk 0:00:47.4]} 19... Qxc2
{[%clk 0:02:13.3]} 20. Bxc2 {[%clk 0:00:48.3]} 20... Ra2 {[%clk 0:02:07.3]} 21.
Rc1 {[%clk 0:00:48.1]} 21... Nxc4 {[%clk 0:02:06.2]} 22. Bg5 {[%clk 0:00:40.4]}
22... Bb2 {[%clk 0:01:34.5]} 23. Rb1 {[%clk 0:00:28.7]} 23... Bf6 {[%clk
0:01:33.7]} 24. Bxf6 {[%clk 0:00:28.3]} 24... exf6 {[%clk 0:01:32.8]} 25. Bd3
{[%clk 0:00:26.1]} 25... Nd2 {[%clk 0:01:29.5]} 26. R1b2 {[%clk 0:00:24.9]}
26... Nxb3 {[%clk 0:01:21.8]} 27. Rxa2 {[%clk 0:00:24.4]} 27... Nc1 {[%clk
0:01:22]} 28. Rd2 {[%clk 0:00:22.9]} 28... Rb8 {[%clk 0:01:16.7]} 29. Bc4 {[%clk
0:00:20.2]} 29... Rb4 {[%clk 0:01:10.6]} 30. Rc2 {[%clk 0:00:20.3]} 30... Nb3
{[%clk 0:01:09.9]} 31. Bxb3 {[%clk 0:00:16.3]} 31... Rxb3 {[%clk 0:01:10.8]} 32.
Rc4 {[%clk 0:00:16.5]} 32... Rb4 {[%clk 0:01:00.5]} 33. Rc3 {[%clk 0:00:15.9]}
33... Kg7 {[%clk 0:00:58]} 34. Kf1 {[%clk 0:00:15.9]} 34... f5 {[%clk
0:00:58.3]} 35. Re3 {[%clk 0:00:13.8]} 35... Kf6 {[%clk 0:00:55.8]} 36. Ke2
{[%clk 0:00:12.5]} 36... f4 {[%clk 0:00:56.1]} 37. Rc3 {[%clk 0:00:11.9]} 37...
Ke5 {[%clk 0:00:56]} 38. Kd2 {[%clk 0:00:10.2]} 38... Rb2+ {[%clk 0:00:54.7]}
39. Ke1 {[%clk 0:00:10.5]} 39... f5 {[%clk 0:00:52.1]} 40. h4 {[%clk 0:00:06.7]}
40... fxe4 {[%clk 0:00:51.5]} 41. fxe4 {[%clk 0:00:07.4]} 41... Kxe4 {[%clk
0:00:52.1]} 42. Rh3 {[%clk 0:00:06.1]} 42... Kxd5 {[%clk 0:00:51.2]} 43. h5
{[%clk 0:00:06.2]} 43... g5 {[%clk 0:00:49.1]} 44. h6 {[%clk 0:00:06.5]} 44...
c4 {[%clk 0:00:43.5]} 45. Rh5 {[%clk 0:00:06.1]} 45... Kd4 {[%clk 0:00:43.5]}
46. Rxg5 {[%clk 0:00:06.3]} 46... c3 {[%clk 0:00:43.8]} 47. Rg7 {[%clk
0:00:04.2]} 47... Rb1+ {[%clk 0:00:44.2]} 48. Ke2 {[%clk 0:00:03.9]} 48... c2
{[%clk 0:00:44.8]} 0-1

[Event "Early-Titled-Tuesday-Blitz-February-13-2024"]
[Site "Chess.com"]
[Date "2024.02.13"]
[Round "3"]
[White "ChessGiantYouTube"]
[Black "DvaHrasta"]
[Result "0-1"]
[WhiteElo "2236"]
[BlackElo "2499"]
[TimeControl "180+1"]
[EndTime "8:31:58 PST"]
[Termination "DvaHrasta won on time"]

1. g3 {[%clk 0:03:00.9]} 1... d5 {[%clk 0:02:59.1]} 2. Bg2 {[%clk 0:03:01.8]}
2... c5 {[%clk 0:02:59.2]} 3. d3 {[%clk 0:03:01.5]} 3... Nc6 {[%clk 0:02:59]} 4.
e3 {[%clk 0:03:01.6]} 4... e5 {[%clk 0:02:57.4]} 5. Ne2 {[%clk 0:03:01.6]} 5...
Bg4 {[%clk 0:02:55.4]} 6. h3 {[%clk 0:03:01]} 6... Bh5 {[%clk 0:02:55.3]} 7. b3
{[%clk 0:03:00.2]} 7... Nf6 {[%clk 0:02:53.1]} 8. Bb2 {[%clk 0:03:00.6]} 8...
Be7 {[%clk 0:02:49.4]} 9. Nd2 {[%clk 0:02:59.5]} 9... O-O {[%clk 0:02:49.1]} 10.
g4 {[%clk 0:02:57]} 10... Bg6 {[%clk 0:02:48.7]} 11. Ng3 {[%clk 0:02:55.8]}
11... b5 {[%clk 0:02:46.4]} 12. h4 {[%clk 0:02:48.7]} 12... h5 {[%clk
0:02:23.2]} 13. gxh5 {[%clk 0:02:46.5]} 13... Bh7 {[%clk 0:02:21.4]} 14. Qe2
{[%clk 0:02:27.2]} 14... a5 {[%clk 0:02:19.8]} 15. Nf3 {[%clk 0:02:23.7]} 15...
e4 {[%clk 0:02:00.9]} 16. Ng5 {[%clk 0:02:23]} 16... exd3 {[%clk 0:01:56.2]} 17.
cxd3 {[%clk 0:02:22.2]} 17... a4 {[%clk 0:01:51]} 18. Nxh7 {[%clk 0:02:18.3]}
18... Kxh7 {[%clk 0:01:43.6]} 19. O-O {[%clk 0:02:07.2]} 19... axb3 {[%clk
0:01:37.6]} 20. axb3 {[%clk 0:02:08.1]} 20... Rxa1 {[%clk 0:01:33.8]} 21. Rxa1
{[%clk 0:02:07.5]} 21... Nb4 {[%clk 0:01:28]} 22. Bc3 {[%clk 0:01:46.1]} 22...
d4 {[%clk 0:01:16.7]} 23. exd4 {[%clk 0:01:42.4]} 23... cxd4 {[%clk 0:01:13.8]}
24. Bxb4 {[%clk 0:01:41.1]} 24... Bxb4 {[%clk 0:01:13.8]} 25. Ne4 {[%clk
0:01:31.9]} 25... Nxe4 {[%clk 0:01:08.3]} 26. Bxe4+ {[%clk 0:01:28.5]} 26... f5
{[%clk 0:01:06.8]} 27. Bg2 {[%clk 0:01:13.4]} 27... Qxh4 {[%clk 0:01:05.7]} 28.
Ra7 {[%clk 0:01:12.8]} 28... Qg5 {[%clk 0:00:54.1]} 29. Qe5 {[%clk 0:00:52.3]}
29... Rc8 {[%clk 0:00:46.7]} 30. Ra1 {[%clk 0:00:18.6]} 30... Rd8 {[%clk
0:00:44.9]} 31. Qg3 {[%clk 0:00:12.2]} 31... Qxh5 {[%clk 0:00:37.4]} 32. Qh3
{[%clk 0:00:12.5]} 32... Qxh3 {[%clk 0:00:35.8]} 33. Bxh3 {[%clk 0:00:13.4]}
33... g6 {[%clk 0:00:35]} 34. Kg2 {[%clk 0:00:13.7]} 34... Rc8 {[%clk
0:00:33.4]} 35. Ra7+ {[%clk 0:00:13.2]} 35... Kh6 {[%clk 0:00:32.6]} 36. Rb7
{[%clk 0:00:13.8]} 36... Rc3 {[%clk 0:00:30.5]} 37. Rxb5 {[%clk 0:00:13.6]}
37... Rxb3 {[%clk 0:00:27.3]} 38. Kh2 {[%clk 0:00:11.3]} 38... Bd6+ {[%clk
0:00:25.6]} 0-1

[Event "Early-Titled-Tuesday-Blitz-February-13-2024"]
[Site "Chess.com"]
[Date "2024.02.13"]
[Round "3"]
[White "viviania"]
[Black "ChessQueen"]
[Result "1-0"]
[WhiteElo "2918"]
[BlackElo "2686"]
[TimeControl "180+1"]
[EndTime "8:32:01 PST"]
[Termination "viviania won by resignation"]

1. d4 {[%clk 0:02:46.6]} 1... Nf6 {[%clk 0:02:59.6]} 2. c4 {[%clk 0:02:46.8]}
2... e6 {[%clk 0:02:59.8]} 3. Nc3 {[%clk 0:02:47.1]} 3... Bb4 {[%clk 0:02:59.4]}
4. e3 {[%clk 0:02:47.5]} 4... b6 {[%clk 0:02:58.7]} 5. Ne2 {[%clk 0:02:47.1]}
5... Ne4 {[%clk 0:02:57]} 6. Qc2 {[%clk 0:02:44.8]} 6... Bb7 {[%clk 0:02:56]} 7.
a3 {[%clk 0:02:44.7]} 7... Bxc3+ {[%clk 0:02:55]} 8. Nxc3 {[%clk 0:02:44.9]}
8... Nxc3 {[%clk 0:02:54.6]} 9. Qxc3 {[%clk 0:02:45.2]} 9... d6 {[%clk
0:02:49.1]} 10. b3 {[%clk 0:02:44.6]} 10... Nd7 {[%clk 0:02:47.1]} 11. Bb2
{[%clk 0:02:44.5]} 11... Qh4 {[%clk 0:02:33.5]} 12. d5 {[%clk 0:02:29.8]} 12...
O-O-O {[%clk 0:02:23.9]} 13. Qxg7 {[%clk 0:02:19.4]} 13... Rhg8 {[%clk
0:02:14.7]} 14. Qd4 {[%clk 0:02:18.9]} 14... Qh5 {[%clk 0:02:00.6]} 15. Be2
{[%clk 0:02:04.5]} 15... Qg6 {[%clk 0:01:55.6]} 16. g3 {[%clk 0:02:04.4]} 16...
Nc5 {[%clk 0:01:52.4]} 17. Qd1 {[%clk 0:02:04.2]} 17... Qf5 {[%clk 0:01:35.6]}
18. b4 {[%clk 0:01:53.7]} 18... Ne4 {[%clk 0:01:35.4]} 19. f3 {[%clk 0:01:53.3]}
19... Ng5 {[%clk 0:01:21.5]} 20. e4 {[%clk 0:01:32.4]} 20... Qh3 {[%clk
0:01:20.5]} 21. Qd3 {[%clk 0:01:28.3]} 21... f5 {[%clk 0:01:19.3]} 22. exf5
{[%clk 0:01:21.5]} 22... exd5 {[%clk 0:01:13.3]} 23. cxd5 {[%clk 0:01:20.8]}
23... Rde8 {[%clk 0:00:55.2]} 24. O-O-O {[%clk 0:01:17.3]} 24... Rxe2 {[%clk
0:00:51.2]} 25. Qxe2 {[%clk 0:01:16.3]} 25... Qxf5 {[%clk 0:00:51.9]} 26. f4
{[%clk 0:01:06.8]} 26... Ne4 {[%clk 0:00:50.4]} 27. Rhe1 {[%clk 0:01:06.7]}
27... Re8 {[%clk 0:00:48.8]} 28. Qd3 {[%clk 0:01:02.3]} 28... Qg6 {[%clk
0:00:42.9]} 29. Re3 {[%clk 0:00:54.1]} 29... Qf5 {[%clk 0:00:28.4]} 30. Be5
{[%clk 0:00:42.7]} 30... Nxg3 {[%clk 0:00:19.5]} 31. hxg3 {[%clk 0:00:40.8]}
31... Qxd3 {[%clk 0:00:18.8]} 32. Rdxd3 {[%clk 0:00:40.9]} 32... dxe5 {[%clk
0:00:19.7]} 33. Rxe5 {[%clk 0:00:40.8]} 33... Rd8 {[%clk 0:00:16.6]} 34. d6
{[%clk 0:00:39.3]} 34... cxd6 {[%clk 0:00:16.2]} 35. Re7 {[%clk 0:00:39.4]}
35... Kb8 {[%clk 0:00:16.2]} 36. Rde3 {[%clk 0:00:35.9]} 36... h5 {[%clk
0:00:11.9]} 37. Re8 {[%clk 0:00:34.4]} 37... Rxe8 {[%clk 0:00:11]} 38. Rxe8+
{[%clk 0:00:34.2]} 38... Kc7 {[%clk 0:00:11.9]} 39. Re7+ {[%clk 0:00:34.3]}
39... Kc8 {[%clk 0:00:11.4]} 40. Kd2 {[%clk 0:00:33.9]} 40... a5 {[%clk
0:00:11.1]} 41. Kc3 {[%clk 0:00:31]} 41... axb4+ {[%clk 0:00:09.6]} 42. axb4
{[%clk 0:00:30.8]} 42... Bf3 {[%clk 0:00:08.9]} 43. f5 {[%clk 0:00:30.4]} 43...
Kd8 {[%clk 0:00:09.2]} 44. f6 {[%clk 0:00:30.4]} 44... Bg4 {[%clk 0:00:09]} 45.
Kd4 {[%clk 0:00:29.6]} 1-0